bitfinex/quotes_SOLUSD_20241111
["timestamp","ask_amount","ask_price","bid_price","bid_amount"]
[1731342647320,0.09292671,220.33,220.3,115.73541342]
[1731342647512,0.09292671,220.38,220.37,70.0]
[1731342647889,0.09292671,220.37,220.34,90.0]
[1731342648088,45.73541342,220.36,220.35,20.0]
[1731342648505,0.09292671,220.32,220.31,70.0]
[1731342648704,0.09292671,220.32,220.31,90.0]
[1731342649814,45.82834013,220.32,220.31,90.0]
[1731342650399,45.82834013,220.32,220.31,70.0]
[1731342650699,0.09292671,220.25,220.24,70.0]
[1731342650912,45.82834013,220.25,220.24,70.0]
[1731342651219,0.09292671,220.19,220.18,70.0]
[1731342651422,45.73541342,220.25,220.21,70.0]
[1731342651423,0.09292671,220.22,220.21,70.0]
[1731342651719,0.09292671,220.19,220.18,70.0]
[1731342652015,45.82834013,220.19,220.18,70.0]
[1731342652314,0.09292671,220.23,220.22,70.0]
[1731342652817,0.09292671,220.31,220.3,70.0]
[1731342653597,0.09292671,220.31,220.3,90.0]
[1731342654697,0.09292671,220.34,220.33,90.0]
[1731342654900,0.09292671,220.38,220.37,90.0]
[1731342655212,0.09292671,220.42,220.41,90.0]
[1731342656220,0.09292671,220.4,220.39,20.0]
[1731342656520,45.82834013,220.4,220.39,20.0]
[1731342656816,0.09292671,220.36,220.35,90.0]
[1731342656997,45.82834013,220.36,220.35,70.0]
[1731342657409,0.09292671,220.33,220.32,70.0]
[1731342657614,0.09292671,220.3,220.29,70.0]
[1731342658119,0.09292671,220.33,220.32,70.0]
[1731342658493,45.82834013,220.33,220.32,70.0]
[1731342658796,0.09292671,220.39,220.38,70.0]
[1731342658996,0.09292671,220.42,220.41,90.0]
[1731342659195,0.09292671,220.39,220.38,70.0]
[1731342659414,0.09292671,220.39,220.38,90.0]
[1731342659799,0.09292671,220.39,220.38,70.0]
[1731342659800,45.82834013,220.39,220.38,70.0]
[1731342660199,0.09292671,220.34,220.32,70.0]
[1731342660408,45.73541342,220.33,220.32,70.0]
[1731342660608,0.09292671,220.3,220.25,70.0]
[1731342660811,45.82834013,220.26,220.25,70.0]
[1731342661098,0.09292671,220.26,220.25,70.0]
[1731342661504,45.82834013,220.26,220.25,70.0]
[1731342661712,45.82834013,220.26,220.09,15.7804]
[1731342661713,0.09292671,220.2,220.19,70.0]
[1731342661912,0.09292671,220.17,220.16,70.0]
[1731342662115,0.09292671,220.17,220.11,70.0]
[1731342662116,0.09292671,220.12,220.11,70.0]
[1731342662305,45.82834013,220.12,220.11,70.0]
[1731342662797,0.09292671,220.09,220.08,70.0]
[1731342663116,45.82834013,220.09,220.08,70.0]
[1731342663812,45.82834013,220.09,220.08,90.0]
[1731342664319,0.09292671,220.11,220.08,70.0]
[1731342664519,0.09292671,220.09,220.08,70.0]
[1731342665201,0.09292671,220.11,220.08,70.0]
[1731342665405,0.09292671,220.09,220.08,70.0]
[1731342665612,0.09292671,220.11,220.09,20.0]
[1731342666112,0.09292671,220.11,220.08,70.0]
[1731342666113,45.82834013,220.11,220.08,70.0]
[1731342666422,1.13766292,220.19,220.08,70.0]
[1731342666423,45.82834013,220.09,220.08,70.0]
[1731342667818,0.09292671,220.09,220.08,70.0]
[1731342668028,0.09292671,220.06,220.05,70.0]
[1731342668203,45.82834013,220.06,220.05,70.0]
[1731342668607,45.82834013,220.06,220.05,90.0]
[1731342669321,45.82834013,220.06,220.05,70.0]
[1731342669727,0.09292671,219.97,219.96,70.0]
[1731342669904,45.82834013,219.97,219.96,70.0]
[1731342670318,45.82834013,219.97,219.9,70.0]
[1731342670319,0.09292671,219.91,219.9,70.0]
[1731342670524,45.82834013,219.91,219.9,70.0]
[1731342671116,45.82834013,219.91,219.86,70.0]
[1731342671423,45.82834013,219.87,219.86,70.0]
[1731342671625,0.09292671,219.89,219.86,70.0]
[1731342671927,0.09292671,219.87,219.86,75.64532752]
[1731342672312,0.09292671,219.87,219.86,70.0]
[1731342673030,0.09292671,219.91,219.9,70.0]
[1731342673325,45.73541342,219.95,219.94,70.0]
[1731342673326,0.09292671,219.95,219.94,70.0]
[1731342673717,0.09292671,219.95,219.94,76.32151107]
[1731342673926,0.09292671,219.95,219.94,101.96683859]
[1731342674430,0.09292671,219.95,219.94,90.0]
[1731342674926,45.73541342,219.99,219.94,90.0]
[1731342674927,0.09292671,219.97,219.95,20.0]
[1731342675509,45.82834013,219.97,219.95,20.0]
[1731342676312,45.82834013,219.97,219.85,0.1]
[1731342676313,0.09292671,219.92,219.91,70.0]
[1731342676620,45.82834013,219.92,219.91,70.0]
[1731342677937,45.82834013,219.92,219.91,90.0]
[1731342678513,45.82834013,219.94,219.91,90.0]
[1731342678719,0.09292671,219.94,219.92,20.0]
[1731342678919,45.82834013,219.94,219.92,20.0]
[1731342679448,0.09292671,219.94,219.92,20.0]
[1731342679735,0.09292671,219.96,219.95,90.0]
[1731342680029,45.82834013,219.96,219.95,70.0]
[1731342680438,45.82834013,219.96,219.95,90.0]
[1731342681320,0.09292671,219.96,219.95,90.0]
[1731342681515,0.09292671,219.98,219.96,20.0]
[1731342681717,45.73541342,220.0,219.99,90.0]
[1731342682020,45.73541342,220.0,219.96,90.0]
[1731342682021,0.09292671,219.97,219.96,90.0]
[1731342684142,0.09292671,219.97,219.96,70.0]
[1731342684438,0.09292671,219.94,219.93,70.0]
[1731342684739,45.82834013,219.94,219.93,70.0]
[1731342685621,0.09292671,219.94,219.93,90.0]
[1731342685821,45.82834013,219.96,219.94,20.0]
[1731342686026,0.09292671,219.96,219.94,20.0]
[1731342686326,45.82834013,219.96,219.95,20.0]
[1731342686536,0.09292671,219.94,219.93,90.0]
[1731342686838,45.82834013,219.94,219.93,90.0]
[1731342688328,0.09292671,219.9,219.89,70.0]
[1731342688529,45.82834013,219.9,219.89,70.0]
[1731342689943,45.82834013,219.9,219.89,90.0]
[1731342692949,0.09292671,219.87,219.86,70.0]
[1731342693272,0.09292671,219.78,219.77,70.0]
[1731342693454,45.7653263,219.78,219.77,70.0]
[1731342693629,45.73541342,219.8,219.77,70.0]
[1731342693829,0.1,219.88,219.68,5.43156688]
[1731342693830,0.1,219.86,219.81,70.0]
[1731342694043,45.73541342,219.82,219.81,70.0]
[1731342694431,45.73541342,219.86,219.85,70.0]
[1731342694628,45.73541342,219.9,219.89,70.0]
[1731342695047,0.1,219.99,219.92,20.0]
[1731342695247,45.73541342,219.93,219.89,6.32151107]
[1731342695450,0.1,219.89,219.83,70.0]
[1731342696165,91.47082684,219.84,219.79,70.0]
[1731342696445,0.1,219.79,219.75,70.0]
[1731342696656,45.73541342,219.79,219.77,70.0]
[1731342697248,45.73541342,219.79,219.74,70.0]
[1731342697455,45.73541342,219.75,219.74,70.0]
[1731342697831,45.73541342,219.75,219.57,0.07008712]
[1731342697832,45.83541342,219.75,219.68,70.0]
[1731342698051,45.73541342,219.69,219.68,70.0]
[1731342698830,45.73541342,219.69,219.56,6.1901]
[1731342698831,45.73541342,219.69,219.65,76.32151107]
[1731342699132,45.73541342,219.66,219.62,70.0]
[1731342699352,45.73541342,219.63,219.62,70.0]
[1731342699855,45.73541342,219.65,219.62,70.0]
[1731342700034,45.73541342,219.67,219.65,70.0]
[1731342700239,45.73541342,219.96,219.58,45.73541342]
[1731342700240,45.73541342,219.69,219.68,70.0]
[1731342700442,45.73541342,219.71,219.7,90.0]
[1731342700649,45.73541342,219.74,219.73,70.0]
[1731342700953,45.73541342,219.76,219.73,70.0]
[1731342701140,45.73541342,219.76,219.74,20.0]
[1731342701335,1.03766292,219.89,219.81,70.0]
[1731342701555,0.2,219.9,219.84,70.0]
[1731342701739,45.73541342,219.85,219.84,70.0]
[1731342701935,91.57082684,219.85,219.81,70.0]
[1731342702248,45.73541342,219.82,219.81,70.0]
[1731342702454,45.73541342,219.82,219.69,45.73541342]
[1731342702644,0.1,219.17,218.96,16.637]
[1731342702836,0.06646202,219.11,219.1,70.0]
[1731342703039,0.06646202,219.12,219.1,70.0]
[1731342703235,45.73541342,219.14,219.1,70.0]
[1731342703458,0.06646202,219.12,219.1,70.0]
[1731342703659,1.03766292,219.35,219.09,70.0]
[1731342703660,45.80187544,219.14,219.09,70.0]
[1731342703951,1.03766292,219.35,219.09,70.0]
[1731342703952,45.80187544,219.1,219.09,70.0]
[1731342705660,0.06646202,219.0,218.99,70.0]
[1731342705836,45.73541342,219.0,218.99,70.0]
[1731342706040,45.80187544,219.0,218.99,70.0]
[1731342706633,91.53728886,219.0,218.99,70.0]
[1731342706839,0.06646202,218.94,218.93,70.0]
[1731342707034,45.74535598,218.94,218.93,70.0]
[1731342707936,45.73541342,218.94,218.9,70.0]
[1731342708136,91.47082684,218.91,218.9,70.0]
[1731342708337,45.73541342,218.91,218.9,70.0]
[1731342708742,91.47082684,218.91,218.87,70.0]
[1731342708947,91.47082684,218.88,218.84,70.0]
[1731342709150,45.73541342,218.85,218.84,70.0]
[1731342709869,0.1,218.79,218.69,70.0]
[1731342710053,0.1,218.79,218.57,0.09005744]
[1731342710054,1.03766292,218.87,218.82,70.0]
[1731342710361,45.73541342,218.88,218.85,70.0]
[1731342710654,0.1,218.95,218.84,70.0]
[1731342710836,0.1,218.94,218.85,70.0]
[1731342711038,0.2,218.94,218.85,70.0]
[1731342711550,0.2,218.94,218.71,0.1]
[1731342711551,45.73541342,218.86,218.81,70.0]
[1731342711755,45.73541342,218.88,218.81,70.0]
[1731342711756,45.73541342,218.82,218.81,70.0]
[1731342712253,45.73541342,218.82,218.78,70.0]
[1731342712445,45.73541342,218.79,218.78,70.0]
[1731342712963,45.73541342,218.79,218.75,70.0]
[1731342713261,1.93,218.84,218.75,70.0]
[1731342713262,45.73541342,218.76,218.75,70.0]
[1731342714349,1.93,218.84,218.81,70.0]
[1731342714550,45.73541342,218.82,218.81,70.0]
[1731342714770,45.73541342,218.82,218.79,20.0]
[1731342715055,1.93,218.84,218.81,70.0]
[1731342715261,1.93,218.84,218.77,70.0]
[1731342715437,45.73541342,218.78,218.77,70.0]
[1731342716179,1.93,218.84,218.83,70.0]
[1731342716476,45.73541342,218.86,218.83,113.776884]
[1731342716678,45.73541342,218.88,218.87,70.0]
[1731342716882,45.73541342,218.88,218.87,90.0]
[1731342717061,45.73541342,218.88,218.87,70.0]
[1731342717371,45.73541342,218.9,218.89,90.0]
[1731342717572,45.73541342,218.9,218.84,23.86694144]
[1731342717573,45.73541342,218.94,218.93,90.0]
[1731342718050,45.73541342,218.98,218.97,90.0]
[1731342718253,45.73541342,219.03,219.02,90.0]
[1731342718663,45.73541342,219.03,219.02,113.776884]
[1731342719564,45.73541342,219.03,219.02,93.776884]
[1731342720288,45.73541342,219.03,218.95,70.0]
[1731342720458,45.73541342,218.96,218.95,70.0]
[1731342720656,45.73541342,219.02,219.01,70.0]
[1731342720974,45.73541342,219.06,219.05,70.0]
[1731342721182,0.2,219.2,219.11,70.0]
[1731342721357,0.1,219.2,219.1,70.0]
[1731342721681,45.73541342,219.11,219.1,93.776884]
[1731342721861,0.1,219.19,219.1,70.0]
[1731342721862,45.73541342,219.12,219.1,70.0]
[1731342722184,45.73541342,219.12,219.11,23.776884]
[1731342722885,0.1,219.22,219.11,23.776884]
[1731342722886,45.73541342,219.14,219.13,70.0]
[1731342723054,45.73541342,219.14,219.13,93.776884]
[1731342723474,45.73541342,219.14,219.13,113.776884]
[1731342723774,45.73541342,219.14,219.13,93.776884]
[1731342723971,91.57082684,219.14,219.06,70.0]
[1731342724180,91.57082684,219.14,219.0,6.2872]
[1731342724181,45.73541342,219.07,219.03,70.0]
[1731342724375,45.73541342,219.04,218.99,70.0]
[1731342724580,45.73541342,219.12,218.89,6.2872]
[1731342724581,91.47082684,219.0,218.94,70.0]
[1731342724761,45.73541342,218.95,218.91,70.0]
[1731342724963,45.73541342,218.95,218.85,16.239]
[1731342724964,1.23766292,219.11,219.0,70.0]
[1731342725257,1.03766292,219.11,219.1,70.0]
[1731342725461,0.1,219.08,218.96,70.0]
[1731342725677,0.1,219.03,218.91,70.0]
[1731342725878,0.1,219.01,218.92,1.04408655]
[1731342726058,45.73541342,218.93,218.92,1.04408655]
[1731342727878,46.77307634,218.93,218.92,1.04408655]
[1731342728065,46.87307634,218.93,218.92,1.04408655]
[1731342728273,45.73541342,218.93,218.85,70.0]
[1731342728466,45.73541342,218.86,218.82,70.0]
[1731342728663,45.73541342,218.83,218.82,70.0]
[1731342729362,45.73541342,218.85,218.82,70.0]
[1731342729955,45.73541342,218.83,218.77,70.0]
[1731342730159,45.73541342,218.8,218.77,70.0]
[1731342730773,45.73541342,218.78,218.74,70.0]
[1731342731563,45.73541342,218.8,218.77,93.776884]
[1731342731770,45.73541342,218.82,218.81,113.776884]
[1731342732277,0.1,218.94,218.81,113.776884]
[1731342732278,45.73541342,218.84,218.82,43.776884]
[1731342733166,45.73541342,218.86,218.85,23.776884]
[1731342733467,45.73541342,218.86,218.82,43.776884]
[1731342733777,45.73541342,218.9,218.89,23.776884]
[1731342733985,45.73541342,218.94,218.91,70.0]
[1731342734275,45.73541342,218.94,218.92,23.776884]
[1731342734482,45.73541342,219.0,218.97,70.0]
[1731342734670,45.73541342,219.0,218.9,0.1]
[1731342734671,45.73541342,219.0,218.98,20.0]
[1731342734982,46.77307634,218.99,218.92,43.776884]
[1731342735168,45.73541342,218.94,218.92,43.776884]
[1731342735370,45.73541342,219.0,218.96,20.0]
[1731342735573,45.73541342,219.02,219.0,23.776884]
[1731342735765,45.73541342,219.04,219.02,70.0]
[1731342735967,45.73541342,219.04,219.03,23.776884]
[1731342736268,22.33053,219.33,219.06,20.0]
[1731342736269,45.73541342,219.08,219.06,20.0]
[1731342736473,0.2,219.18,219.06,20.0]
[1731342736474,45.73541342,219.1,219.09,93.776884]
[1731342736668,45.73541342,219.1,219.09,23.776884]
[1731342736870,45.73541342,219.1,219.04,43.776884]
[1731342737069,45.73541342,219.11,219.09,23.776884]
[1731342737484,1.03766292,219.1,219.06,23.776884]
[1731342737670,45.73541342,219.07,219.06,23.776884]
[1731342737988,45.73541342,219.07,219.06,43.776884]
[1731342738363,45.73541342,219.07,219.06,23.776884]
[1731342739506,45.73541342,219.07,219.02,70.0]
[1731342739507,45.73541342,219.07,219.03,20.0]
[1731342739666,45.73541342,219.05,219.02,70.0]
[1731342739973,45.73541342,219.03,219.02,70.0]
[1731342740166,45.73541342,219.03,219.0,23.776884]
[1731342740385,45.73541342,219.05,219.02,70.0]
[1731342740589,45.73541342,219.07,219.02,70.0]
[1731342740769,45.73541342,219.03,218.99,70.0]
[1731342740968,0.1,219.11,218.99,70.0]
[1731342740969,45.73541342,219.01,218.99,70.0]
[1731342741579,45.73541342,219.01,218.9,70.0]
[1731342741785,45.73541342,218.93,218.9,70.0]
[1731342741967,45.73541342,218.91,218.87,70.0]
[1731342742289,45.73541342,218.89,218.8,70.0]
[1731342742591,45.73541342,218.82,218.8,70.0]
[1731342742966,45.73541342,218.84,218.8,70.0]
[1731342743169,0.2,218.91,218.69,22.6273]
[1731342743170,45.73541342,218.82,218.77,70.0]
[1731342743597,45.73541342,218.8,218.74,70.0]
[1731342743770,45.73541342,218.78,218.74,70.0]
[1731342744267,45.73541342,218.76,218.74,70.0]
[1731342744981,45.73541342,218.78,218.74,70.0]
[1731342745687,45.73541342,218.82,218.77,70.0]
[1731342745890,45.73541342,218.84,218.77,70.0]
[1731342746081,45.73541342,218.86,218.8,70.0]
[1731342746283,45.73541342,218.82,218.75,20.0]
[1731342746595,45.73541342,218.76,218.73,70.0]
[1731342746892,45.73541342,218.78,218.73,70.0]
[1731342747100,0.1,218.84,218.64,0.1]
[1731342747101,45.73541342,218.76,218.7,70.0]
[1731342747777,45.73541342,218.76,218.73,70.0]
[1731342747986,0.2,218.86,218.74,23.776884]
[1731342747987,45.73541342,218.78,218.74,23.776884]
[1731342748692,1.23766292,218.86,218.76,23.776884]
[1731342748693,45.73541342,218.8,218.76,23.776884]
[1731342748874,45.73541342,218.85,218.81,20.0]
[1731342749076,45.73541342,218.83,218.76,70.0]
[1731342749276,45.73541342,218.83,218.8,43.776884]
[1731342749986,45.73541342,218.85,218.8,43.776884]
[1731342750494,45.73541342,218.83,218.8,43.776884]
[1731342750792,45.73541342,218.85,218.8,43.776884]
[1731342751089,45.73541342,218.83,218.77,20.0]
[1731342751299,1.03766292,218.82,218.77,20.0]
[1731342751588,18.258141,218.96,218.77,20.0]
[1731342751589,45.73541342,218.85,218.77,20.0]
[1731342751789,45.73541342,218.87,218.77,65.73541342]
[1731342752091,45.73541342,218.94,218.89,20.0]
[1731342752277,45.73541342,218.92,218.89,20.0]
[1731342752490,0.1,218.96,218.89,20.0]
[1731342752491,45.73541342,218.9,218.89,20.0]
[1731342752795,45.73541342,218.9,218.82,20.0]
[1731342753012,45.73541342,218.87,218.82,20.0]
[1731342753173,1.03766292,218.86,218.82,20.0]
[1731342753525,45.73541342,218.83,218.79,20.0]
[1731342753673,45.73541342,218.8,218.76,20.0]
[1731342753877,45.73541342,218.88,218.72,70.0]
[1731342753878,45.73541342,218.78,218.72,70.0]
[1731342754794,1.03766292,218.85,218.75,70.0]
[1731342755011,45.73541342,218.8,218.75,70.0]
[1731342755478,45.73541342,218.8,218.64,45.73541342]
[1731342755479,45.73541342,218.76,218.68,70.0]
[1731342755801,45.73541342,218.8,218.74,70.0]
[1731342756187,45.73541342,218.82,218.77,70.0]
[1731342756390,45.73541342,218.86,218.83,70.0]
[1731342756698,45.73541342,218.91,218.86,20.0]
[1731342756885,1.13766292,218.99,218.83,70.0]
[1731342756886,45.73541342,218.89,218.88,23.776884]
[1731342757084,45.73541342,218.91,218.88,23.776884]
[1731342757493,1.03766292,218.9,218.88,23.776884]
[1731342757690,45.73541342,218.89,218.86,20.0]
[1731342757888,45.73541342,218.87,218.84,23.776884]
[1731342758080,1.23766292,218.94,218.75,70.0]
[1731342758291,45.73541342,218.81,218.76,20.0]
[1731342758579,45.73541342,218.85,218.78,70.0]
[1731342758903,45.73541342,218.89,218.81,70.0]
[1731342759080,1.03766292,218.88,218.81,70.0]
[1731342759393,45.73541342,218.87,218.82,23.776884]
[1731342759593,45.73541342,218.87,218.84,23.776884]
[1731342759798,45.73541342,218.89,218.86,23.776884]
[1731342759980,46.77307634,218.88,218.79,43.776884]
[1731342760174,46.77307634,218.88,218.75,70.0]
[1731342760175,1.13766292,218.88,218.76,45.73541342]
[1731342760392,45.73541342,218.84,218.76,45.73541342]
[1731342760600,1.03766292,218.83,218.75,70.0]
[1731342760896,45.73541342,218.82,218.75,70.0]
[1731342761098,1.03766292,218.81,218.75,70.0]
[1731342761802,1.03766292,218.86,218.8,23.776884]
[1731342762000,45.73541342,218.84,218.76,70.0]
[1731342762305,45.73541342,218.79,218.69,70.0]
[1731342762494,45.73541342,218.75,218.67,45.73541342]
[1731342762675,1.03766292,218.74,218.69,45.73541342]
[1731342762879,1.03766292,218.78,218.71,115.23541342]
[1731342763096,45.73541342,218.79,218.71,115.73541342]
[1731342763287,45.73541342,218.83,218.75,45.73541342]
[1731342763494,45.73541342,218.85,218.78,70.0]
[1731342763891,1.03766292,218.91,218.79,65.73541342]
[1731342764097,45.73541342,218.88,218.79,65.73541342]
[1731342764298,1.03766292,218.87,218.8,23.776884]
[1731342764500,1.03766292,218.87,218.82,23.776884]
[1731342764700,45.73541342,218.86,218.82,23.776884]
[1731342764924,1.03766292,218.85,218.81,20.0]
[1731342765208,45.73541342,218.82,218.73,20.0]
[1731342765502,45.73541342,218.78,218.69,45.73541342]
[1731342765688,1.03766292,218.77,218.69,45.73541342]
[1731342765889,45.73541342,218.76,218.68,70.0]
[1731342766111,1.03766292,218.75,218.68,70.0]
[1731342766284,1.03766292,218.75,218.69,45.73541342]
[1731342766802,1.03766292,218.75,218.68,70.0]
[1731342766999,1.03766292,218.75,218.67,45.73541342]
[1731342767190,45.83541342,218.74,218.64,45.73541342]
[1731342767392,45.73541342,218.71,218.63,70.0]
[1731342767598,1.03766292,218.7,218.63,70.0]
[1731342767901,1.03766292,218.7,218.62,45.83541342]
[1731342768100,1.03766292,218.7,218.64,45.73541342]
[1731342768308,45.73541342,218.75,218.66,45.73541342]
[1731342768512,1.03766292,218.74,218.68,45.73541342]
[1731342768687,1.03766292,218.76,218.69,20.0]
[1731342768889,45.73541342,218.71,218.64,20.0]
[1731342769084,45.73541342,218.65,218.6,70.0]
[1731342769296,45.73541342,218.64,218.6,70.0]
[1731342769805,45.73541342,218.65,218.6,70.0]
[1731342770109,45.73541342,218.67,218.6,70.0]
[1731342770415,45.73541342,218.62,218.6,70.0]
[1731342770587,0.2,218.73,218.55,70.0]
[1731342770911,0.1,218.67,218.52,70.0]
[1731342771109,45.73541342,218.57,218.49,45.73541342]
[1731342771319,45.73541342,218.57,218.46,16.353]
[1731342771320,45.73541342,218.59,218.53,70.0]
[1731342771485,45.73541342,218.61,218.56,70.0]
[1731342771687,45.73541342,218.63,218.59,70.0]
[1731342771893,45.73541342,218.65,218.59,70.0]
[1731342772200,45.73541342,218.6,218.56,70.0]
[1731342772389,1.03766292,218.7,218.57,43.776884]
[1731342772594,45.73541342,218.66,218.6,43.776884]
[1731342773109,1.03766292,218.65,218.6,43.776884]
[1731342773487,45.73541342,218.64,218.6,43.776884]
[1731342773710,42.53541342,218.64,218.6,43.776884]
[1731342773889,42.53541342,218.64,218.6,20.0]
[1731342774087,42.53541342,218.64,218.6,23.776884]
[1731342774305,42.53541342,218.64,218.62,23.776884]
[1731342774610,42.53541342,218.64,218.6,20.0]
[1731342774820,45.73541342,218.68,218.63,70.0]
[1731342774986,45.73541342,218.66,218.64,20.0]
[1731342775190,1.03766292,218.74,218.64,20.0]
[1731342775387,45.73541342,218.67,218.64,20.0]
[1731342775593,45.73541342,218.67,218.63,23.776884]
[1731342775792,45.73541342,218.67,218.64,20.0]
[1731342776520,45.73541342,218.69,218.64,20.0]
[1731342776895,1.03766292,218.68,218.64,20.0]
[1731342777113,45.73541342,218.69,218.64,20.0]
[1731342777318,1.03766292,218.75,218.68,43.776884]
[1731342777319,46.77307634,218.75,218.68,43.776884]
[1731342779114,45.73541342,218.83,218.77,20.0]
[1731342779313,45.73541342,218.79,218.77,20.0]
[1731342779629,45.73541342,218.79,218.75,23.776884]
[1731342779798,45.73541342,218.77,218.76,20.0]
[1731342780197,45.73541342,218.79,218.76,20.0]
[1731342780397,45.73541342,218.79,218.75,23.776884]
[1731342780596,45.73541342,218.79,218.76,20.0]
[1731342781117,45.73541342,218.79,218.77,23.776884]
[1731342781297,45.73541342,218.79,218.75,20.0]
[1731342781497,45.73541342,218.79,218.76,23.776884]
[1731342781717,45.73541342,218.77,218.74,20.0]
[1731342781922,45.73541342,218.77,218.67,0.1]
[1731342781923,45.73541329,218.75,218.65,85.5445]
[1731342782102,1.03766292,218.76,218.65,85.5445]
[1731342782103,45.73541342,218.7,218.65,85.5445]
[1731342782423,45.73541342,218.7,218.65,70.0]
[1731342782599,1.03766292,218.69,218.62,70.0]
[1731342782796,45.73541342,218.64,218.56,85.8472]
[1731342783001,1.03766292,218.69,218.56,70.0]
[1731342783002,45.73541342,218.62,218.56,70.0]
[1731342783202,45.73541342,218.64,218.58,70.0]
[1731342783398,1.03766292,218.69,218.56,45.73541342]
[1731342783399,45.73541342,218.66,218.61,70.0]
[1731342783601,45.73541342,218.7,218.64,70.0]
[1731342784116,45.73541342,218.7,218.65,20.0]
[1731342784323,45.73541342,218.7,218.64,70.0]
[1731342784324,45.73541342,218.68,218.64,70.0]
[1731342784615,45.73541342,218.7,218.64,70.0]
[1731342784803,45.73541342,218.7,218.65,23.776884]
[1731342785316,45.73541342,218.68,218.65,23.776884]
[1731342785503,45.73541342,218.68,218.66,20.0]
[1731342785823,45.73541342,218.72,218.68,20.0]
[1731342786027,0.1,218.8,218.68,20.0]
[1731342786028,45.73541342,218.7,218.68,20.0]
[1731342786227,1.03766292,218.69,218.56,70.0]
[1731342786519,45.73541342,218.62,218.56,70.0]
[1731342787034,45.73541342,218.64,218.56,70.0]
[1731342787197,45.73541342,218.58,218.53,70.0]
[1731342787508,1.03766292,218.57,218.56,70.0]
[1731342787829,45.73541342,218.6,218.53,115.73541342]
[1731342788120,45.73541342,218.64,218.59,70.0]
[1731342788424,1.03766292,218.68,218.48,15.8472]
[1731342788425,45.73541342,218.68,218.62,70.0]
[1731342788607,45.73541342,218.7,218.63,65.73541342]
[1731342788921,45.73541342,219.0,218.63,65.73541342]
[1731342788922,45.73541342,218.68,218.67,20.0]
[1731342789122,45.73541342,218.68,218.63,20.0]
[1731342789425,1.03766292,218.75,218.67,20.0]
[1731342789730,1.03766292,218.75,218.6,23.776884]
[1731342789731,1.03766292,218.75,218.68,20.0]
[1731342789904,45.73541342,218.71,218.68,20.0]
[1731342790416,45.73541342,218.77,218.73,70.0]
[1731342790628,45.73541342,218.79,218.74,20.0]
[1731342790799,45.73541342,218.84,218.8,20.0]
[1731342790999,18.262057,218.88,218.84,20.0]
[1731342791403,45.73541342,218.94,218.9,70.0]
[1731342791608,45.73541342,219.02,218.97,20.0]
[1731342791817,45.73541342,219.08,219.0,20.0]
[1731342792007,0.1,219.17,218.95,0.1]
[1731342792008,45.73541342,219.1,219.04,20.0]
[1731342792624,46.77307634,219.18,219.11,23.776884]
[1731342792810,45.73541342,219.14,219.1,20.0]
[1731342793004,45.73541342,219.12,219.07,20.0]
[1731342793204,45.73541342,219.08,219.07,20.0]
[1731342793417,45.73541342,219.08,219.04,20.0]
[1731342793631,45.73541342,219.05,219.0,70.0]
[1731342793826,45.73541342,219.03,219.01,20.0]
[1731342794527,45.73541342,219.03,219.0,70.0]
[1731342794726,45.73541342,219.05,219.0,70.0]
[1731342794911,45.73541342,219.03,218.97,70.0]
[1731342795110,45.73541342,219.01,219.0,70.0]
[1731342795306,45.73541342,219.03,218.95,70.0]
[1731342795524,45.73541342,219.05,219.02,70.0]
[1731342795925,45.73541342,219.09,219.05,70.0]
[1731342796127,45.73541342,219.05,219.03,20.0]
[1731342796425,45.73541342,219.07,219.03,20.0]
[1731342796627,0.23326935,219.1,219.09,43.776884]